{"text_format":"1","workbook":"xlsx","n_sheets":6,"sheets":["Capa","Simular IRS","Informação Genérica","Disclaimer","Ajuda","BIG SIMULATOR"],"not_rendered":{"charts":0,"images":5,"macros":1,"external_links":0,"defined_names":21,"comments":0,"pivot_tables":0},"unopened":[],"bounds":{"document_bytes":16777216,"sheet_cells":100000,"rows_first":2000,"rows_last":500,"rows_between":2000,"halvings":0,"cell_chars":16384,"cell_head_chars":4096},"cells_cut":0,"cells_raw":0,"read":"whole","date_system":"1900"}

{"sheet":"Capa","index":0,"n_rows":0,"n_cols":0,"rows_kept":0,"cut":false,"hidden":false,"merged":[]}

{"sheet":"Simular IRS","index":1,"n_rows":77,"n_cols":12,"rows_kept":77,"cut":false,"hidden":false,"merged":[[49,1,56,1],[73,4,73,5],[74,4,74,5],[77,1,78,1],[81,1,81,11],[68,4,68,5],[69,4,69,5],[70,4,70,5],[71,4,71,5],[72,4,72,5],[25,6,25,7],[26,6,26,7],[36,6,36,7],[41,6,41,7],[29,6,29,7],[32,6,32,7],[34,6,34,7],[39,6,39,7],[1,1,2,11],[6,1,15,1],[7,5,7,6],[9,5,9,6],[23,6,23,9],[32,9,32,11],[67,4,67,5],[65,4,65,5],[78,3,78,6],[51,6,51,7],[53,6,53,7],[55,6,55,7],[59,3,59,9],[47,6,47,7],[43,6,43,7],[45,6,45,7],[62,4,62,5],[63,4,63,5],[64,4,64,5],[66,4,66,5]]}
[]
[]
[]
[]
[]
[null,"Passo 1",null,"Informação pessoal"]
[]
[null,null,null,"Estado civil"]
[]
[null,null,null,"Tributação Separada / Tributação Conjunta"]
[]
[null,null,null,"N.º de Dependentes com 3 anos ou menos"]
[]
[null,null,null,"N.º de Dependentes entre 4 e 6 anos"]
[]
[null,null,null,"N.º de Dependentes com mais de 6 anos"]
[]
[null,null,null,"N.º de Ascendentes"]
[]
[null,null,null,"Idade Sujeito Passivo A"]
[]
[null,null,null,"Idade Sujeito Passivo B"]
[]
[]
[null,"Passo 2",null,"Rendimentos"]
[null,null,null,null,null,null,"Sujeito Passivo A",null,null,null,null,"Sujeito Passivo B"]
[null,"Categoria A",null,"Rendimentos do trabalho dependente"]
[]
[]
[null,"Categoria H",null,"Pensões de velhice"]
[]
[]
[null,"Passo 3",null,"Deduções à coleta do IRS, incluindo benefícios fiscais"]
[]
[null,null,null,"Despesas de saúde e prémios de seguros de saúde"]
[]
[null,null,null,"Despesas de educação do agregado familiar"]
[]
[null,null,null,"Despesas com aquisição de imóvel para habitação própria permanente"]
[null,null,null,"Ano do contrato (preenchimento obrigatório)"]
[]
[null,null,null,"Juros"]
[]
[null,null,null,"Despesas com rendas para habitação própria permanente"]
[]
[null,null,null,"Despesas gerais (outras não referidas acima)"]
[]
[null,null,null,"Encargos com pensões de alimentos"]
[]
[null,null,null,"Contribuições para Planos Poupança Reforma"]
[]
[null,null,null,"Sujeito Passivo A"]
[]
[null,null,null,"Sujeito Passivo B"]
[]
[null,null,null,"Encargos com donativos"]
[]
[]
[]
[null,null,null,{"$f":"IF('BIG SIMULATOR'!C88=\"\",\"Falta preencher dados\",\"\"&'BIG SIMULATOR'!C88&\"\"&IF('BIG SIMULATOR'!C89=1,\"\",\", \"&'BIG SIMULATOR'!C100)&\"\"&\", \"&IF('BIG SIMULATOR'!C93>1,\"\"&'BIG SIMULATOR'!C93&\" filhos\",IF('BIG SIMULATOR'!C93=1,\"\"&'BIG SIMULATOR'!C93&\" filho\",\"sem filhos\")))&\", \"&IF('BIG SIMULATOR'!C94=0,\" sem ascendentes\",IF('BIG SIMULATOR'!C94=1,\"\"&'BIG SIMULATOR'!C94&\" ascendente\",\"\"&'BIG SIMULATOR'!C94&\" ascendentes\"))","v":"0, sem filhos,  sem ascendentes"}]
[]
[]
[null,null,null,"Ano",2024,null,2025]
[null,null,null,"Rendimento bruto",{"$f":"IFERROR(+'BIG SIMULATOR'!$N$88,0)","v":0},null,{"$f":"IFERROR(+'BIG SIMULATOR'!$N$88,0)","v":0}]
[null,null,null,"IRS antes de deduções (1)",{"$f":"'BIG SIMULATOR'!F46","v":0},null,{"$f":"'BIG SIMULATOR'!G46","v":0}]
[null,null,null,"Deduções à coleta:"]
[null,null,null,"Deduções por dependente / ascendente",{"$f":"IF('BIG SIMULATOR'!H7=TRUE,'BIG SIMULATOR'!H49,'BIG SIMULATOR'!F49)","v":0},null,{"$f":"'BIG SIMULATOR'!G49","v":0}]
[null,null,null,"Despesas gerais familiares",{"$f":"IF('BIG SIMULATOR'!H7=TRUE,'BIG SIMULATOR'!H50,'BIG SIMULATOR'!F50)","v":0},null,{"$f":"+'BIG SIMULATOR'!G50","v":0}]
[null,null,null,"Saúde / educação / imóveis / pensão de alimentos",{"$f":"IF('BIG SIMULATOR'!H7=TRUE,'BIG SIMULATOR'!H57,'BIG SIMULATOR'!F57)","v":0},null,{"$f":"'BIG SIMULATOR'!G57","v":0}]
[null,null,null,"Benefícios fiscais",{"$f":"IF('BIG SIMULATOR'!H7=TRUE,'BIG SIMULATOR'!H60,'BIG SIMULATOR'!F60)","v":0},null,{"$f":"'BIG SIMULATOR'!G60","v":0}]
[null,null,null,"Total de deduções à coleta ou limite (2)",{"$f":"IF('BIG SIMULATOR'!H7=TRUE,'BIG SIMULATOR'!H65,'BIG SIMULATOR'!F65)","v":0},null,{"$f":"'BIG SIMULATOR'!G65","v":0}]
[null,null,null," Imposto final (1) - (2)",{"$f":"IF('BIG SIMULATOR'!H7=TRUE,'BIG SIMULATOR'!H46-'BIG SIMULATOR'!H65-'BIG SIMULATOR'!H77,'BIG SIMULATOR'!F46-'BIG SIMULATOR'!F65)","v":0},null,{"$f":"'BIG SIMULATOR'!G46-'BIG SIMULATOR'!G65","v":0}]
[null,null,null,"Rendimento líquido de IRS",{"$f":"IF('BIG SIMULATOR'!H7=TRUE,'BIG SIMULATOR'!H82,'BIG SIMULATOR'!F74)","v":0},null,{"$f":"'BIG SIMULATOR'!G74","v":0}]
[null,null,null,"Diferença de rendimento líquido face a 2024",null,null,{"$f":"'BIG SIMULATOR'!G83","v":0}]
[null,null,null,"Taxa efetiva",{"$f":"IF('BIG SIMULATOR'!H7=TRUE,'BIG SIMULATOR'!H80,'BIG SIMULATOR'!F80)","v":0},null,{"$f":"'BIG SIMULATOR'!G80","v":0}]
[]
[null,null,null,"Caso o imposto final seja inferior a € 25, não haverá lugar ao pagamento de qualquer imposto."]

{"sheet":"Informação Genérica","index":2,"n_rows":77,"n_cols":13,"rows_kept":77,"cut":false,"hidden":false,"merged":[[29,2,29,6],[30,2,30,6],[31,2,31,6],[66,2,66,6],[47,2,47,6],[49,2,49,6],[51,2,51,6],[53,2,53,6],[55,2,55,6],[63,2,63,6],[62,2,62,6],[64,2,64,6],[57,2,57,6],[59,2,59,6],[61,2,61,6],[41,2,41,6],[42,2,42,6],[43,2,43,6],[78,2,78,4],[68,2,68,6],[70,2,70,6],[72,2,72,6],[74,2,74,6],[76,2,76,6],[15,2,15,4],[39,9,39,13],[44,2,44,6],[45,2,45,6],[40,9,40,13],[36,2,36,6],[38,2,38,6],[39,2,39,6],[40,2,40,6],[22,2,22,6],[23,2,23,6],[33,2,33,6],[34,2,34,6],[24,2,24,6],[25,2,25,6],[27,2,27,6],[32,2,32,6],[1,3,1,6],[3,2,3,6],[18,2,18,6],[20,2,20,6],[21,2,21,6],[5,2,5,6],[7,2,7,4],[8,2,8,4],[9,2,9,4],[10,2,10,4],[16,2,16,4],[11,2,11,4],[12,2,12,4],[13,2,13,4],[14,2,14,4]]}
[]
[]
[]
[]
[]
[null,null,"Taxas gerais de IRS - 2025"]
[]
[null,null,"Rendimento Coletável (€)",null,null,"Taxa (%)","Parcela a abater (€)"]
[null,null,"Até 8.059",null,null,0.13,0]
[null,null,"De mais de 8.059 até 12.160",null,null,0.16500000000000001,282.07]
[null,null,"De mais de 12.160 até 17.233",null,null,0.22,950.91]
[null,null,"De mais de 17.233 até 22.306",null,null,0.25,1467.91]
[null,null,"De mais de 22.306 até 28.400",null,null,0.32,3029.38]
[null,null,"De mais de 28.400 até 41.629",null,null,0.35499999999999998,4023.14]
[null,null,"De mais de 41.629 até 44.987",null,null,0.435,7353.76]
[null,null,"De mais de 44.987 até 83.696",null,null,0.45,8028.38]
[null,null,"Superior a 83.696",null,null,0.48,10539]
[]
[null,null,"Deduções por dependente e ascendente",null,null,null,null,null,null,null,null,null,"  "]
[]
[null,null,"À coleta do IRS devida pelos sujeitos passivos, é dedutível:"]
[null,null,"a) € 600 por cada dependente, acrescendo:"]
[null,null,"- 126 €, para o primeiro dependente com idade igual ou inferior a 3 anos;"]
[null,null,"- 300 €, para o segundo dependente e seguintes que não ultrapassem 6 anos de idade."]
[null,null,"b) € 525 por cada ascendente (acresce € 110 se existir apenas um ascendente no agregado familiar)."]
[null,null,"O ascendente terá que viver em comunhão de habitação com o sujeito passivo e não poderá auferir rendimento superior à pensão mínima do regime geral"]
[]
[null,null,"Deduções por despesas gerais"]
[]
[null,null,"35% do valor suportado por qualquer membro do agregado familiar:"]
[null,null,"- limite global de € 250 para cada sujeito passivo;"]
[null,null,"- a dedução opera no ano em que as faturas foram emitidas;"]
[null,null,"- para beneficiar da dedução os sujeitos passivos devem pedir ao emitente a inclusão do seu número de identificação fiscal nas faturas;"]
[null,null,"- o valor da dedução é apurado com base nas faturas comunicadas à Autoridade Tributária (AT) pelos emitentes até 25 de fevereiro do ano seguinte ao da sua emissão."]
[null,null,"45% do valor suportado por qualquer membro do agregado familiar com o limite global de € 335, nas famílias monoparentais."]
[]
[null,null,"Dedução por despesas de saúde"]
[]
[null,null,"15% do valor suportado por qualquer membro do agregado familiar com o limite global de € 1.000."]
[null,null,"São elegíveis para dedução as faturas que titulem prestações de serviços e aquisições de bens, isentos de IVA ou tributados à taxa reduzida, nas seguintes atividades:"]
[null,null,"- atividade de saúde humana;"]
[null,null,"- comércio a retalho de produtos farmacêuticos, em estabelecimentos especializados;"]
[null,null,"- comércio a retalho de produtos médicos e ortopédicos, em estabelecimentos especializados;"]
[null,null,"- comércio a retalho de material ótico, em estabelecimentos especializados"]
[null,null,"- prémios de seguros de saúde."]
[null,null,"São elegíveis para dedução as faturas que titulem prestações de serviços e aquisições de bens, tributados à taxa normal de IVA, desde que devidamente justificados através de receita médica."]
[]
[null,null,"Dedução por despesas com educação"]
[]
[null,null,"30% do valor suportado por qualquer membro do agregado familiar com o limite global de € 800. Este limite pode ser aumentado em € 200, quando a diferença seja relativa a arrendamento de imóvel ou de parte de imóvel, a membros do agregado familiar que não tenham mais de 25 anos (cuja localização se situe a uma distância superior a 50 quilómetros da residência permanente)."]
[]
[null,null,"Majoração de 10% do valor de despesas suportadas por estudantes que frequentem estabelecimentos de ensino situados em território do interior e regiões autónomas, caso em que o limite global acima referido é elevado para € 1.000, se derivado deste tipo de despesas."]
[]
[null,null,"Dedução por encargos com imóveis"]
[]
[null,null,"15% do valor suportado por qualquer membro do agregado familiar, relativamente a rendas para fins de habitação permanente, com o limite de € 600 para 2024 e € 700 para 2025."]
[]
[null,null,"15% do valor suportado por qualquer membro do agregado familiar, relativamente a juros de dívidas, por contratos celebrados até 31 de dezembro de 2011, contraídas para aquisição, construção ou beneficiação de imóveis para fins de habitação permanente ou arrendamento, com o limite de € 296. Este limite poderá ser superior, consoante o rendimento coletável do agregado familiar."]
[]
[null,null,"Dedução por exigência de fatura"]
[]
[null,null,"15% do IVA suportado, por qualquer membro do agregado familiar que conste de faturas que titulem determinadas prestações de serviço (manutenção e reparação de veículos automóveis e motociclos, alojamento, restauração e similares, atividades de salões de cabeleireiro e institutos de beleza, atividades veterinárias e atividades de clubes desportivos e ginásios)."]
[null,null,"35% do IVA suportado, por qualquer membro do agregado familiar com aquisição de medicamentos de uso veterinário."]
[null,null,"100% do IVA suportado, por qualquer membro do agregado familiar com aquisição de passes mensais para utilização de transportes públicos e assinaturas de publicações periódicas. (jornais e revistas, incluindo digitais)."]
[null,null,"Limite global de € 250 por agregado familiar."]
[]
[null,null,"Despesas com pensões de alimentos"]
[]
[null,null,"20% dos encargos com pensões de alimentos, desde que resultantes de sentença judicial ou acordo judicialmente homologado."]
[]
[null,null,"Encargos com donativos"]
[]
[null,null,"25% dos donativos destinados a igrejas, instituições religiosas, instituições de caridade, museus, escolas, bibliotecas e outras entidades de cariz social, cultural ou científico reconhecidas pelo Estado, até ao limite de 15% da coleta."]
[]
[null,null,"Contribuições para Planos Poupança Reforma (PPR)"]
[]
[null,null,"20% do valor aplicado com o limite de € 300, € 350 ou € 400 consoante a idade do sujeito passivo."]

{"sheet":"Disclaimer","index":3,"n_rows":52,"n_cols":3,"rows_kept":52,"cut":false,"hidden":false,"merged":[]}
[]
[]
[]
[]
[]
[]
[]
[]
[]
[null,null,"Simulador não prevê as seguintes situações"]
[]
[null,null,"- Residentes fiscais nos Açores e na Madeira;                                                                                                                                                                                                                                                                         "]
[null,null,"- Sujeitos passivos e dependentes com grau de incapacidade;"]
[null,null,"- Agregados familiares em que os dependentes ou os ascendentes aufiram rendimentos;      "]
[null,null,"- Situações de guarda conjunta de dependentes;"]
[null,null,"- IRS Jovem."]
[]
[null,null,"Pressupostos da estimativa de imposto"]
[]
[null,null,"- As estimativas disponibilizadas são meramente ilustrativas e baseadas na interpretação da PwC da Proposta de Lei n.º 26/XVI/1.ª, relativa ao Orçamento do Estado para 2025."]
[null,null,"- No apuramento do abatimento por minímo de existência, não estão contempladas situações em que os sujeitos passivos obtenham rendimentos sujeitos a taxas especiais de IRS."]
[null,null,"- Está a ser considerada a Remuneração Mínima Mensal Garantida de € 870 para 2025, conforme prevista no Acordo Tripartido sobre Valorização Salarial e Crescimento Económico 2025-2028."]
[]
[null,null,"Rendimentos do trabalho dependente - apuramento da dedução específica"]
[]
[null,null,"- Está a considerar-se que a totalidade do rendimento bruto constitui base de incidência contributiva de Segurança Social e que a taxa aplicável é de 11%;"]
[null,null,"- Está a ser considerado o Indexante dos Apoios Sociais em vigor no ano de 2024 (509,26 €)."]
[]
[null,null,"Pensões - apuramento da dedução específica"]
[]
[null,null,"- Está a considerar-se que o valor de contribuições obrigatórias para regimes de proteção social e/ou para subsistemas legais de saúde é inferior ao valor mínimo previsto para a dedução específica."]
[null,null,"- Está a ser considerado o Indexante dos Apoios Sociais em vigor no ano de 2024 (509,26 €)."]
[]
[null,null,"Deduções à coleta"]
[]
[null,null,"Despesas de educação"]
[null,null,"- O simulador não contempla as situações de despesas relativas a arrendamento de imóvel de estudantes que frequentem um estabelecimento de ensino a uma distância superior a 50 quilómetros da sua residência permanente, nem a majoração dos encargos incorridos por estudantes que frequentem estabelecimentos de ensino situados no interior e nas regiões autónomas."]
[]
[null,null,"Encargos com imóveis"]
[null,null,"- O simulador não contempla a majoração do limite de dedução por encargos com imóveis, referente à transferência de residência permanente para um território do interior."]
[]
[null,null,"Encargos com donativos"]
[null,null,"- Assume-se por defeito uma majoração de 130%, sem qualquer limitação. No entanto, esta majoração dependerá da natureza da entidade beneficiária do mesmo."]
[]
[null,null,"Exigência de fatura"]
[null,null,"- O simulador não contempla a dedução referente à exigência de fatura."]
[]
[null,null,"Tributação separada"]
[null,null,"- No valor das despesas referentes a educação, saúde e encargos com imóveis, deverá colocar a totalidade das despesas incorridas pelo seu agregado familiar;"]
[null,null,"- No valor das despesas gerais e familiares, deverá colocar a totalidade das despesas incorridas por si e 50% das despesas incorridas pelos seus dependentes;"]
[null,null,"- No valor dos donativos, deverá colocar a totalidade dos donativos efetuados por si e 50% do valor dos donativos efetuados pelos seus dependentes;"]
[null,null,"- No valor das pensões de alimentos, deverá colocar unicamente o valor de pensões de alimentos pagas por si."]

{"sheet":"Ajuda","index":4,"n_rows":0,"n_cols":0,"rows_kept":0,"cut":false,"hidden":false,"merged":[]}

{"sheet":"BIG SIMULATOR","index":5,"n_rows":193,"n_cols":24,"rows_kept":193,"cut":false,"hidden":true,"merged":[[178,32,178,33],[208,32,208,33],[171,7,171,8],[167,5,167,6],[167,7,169,8],[168,5,168,6],[170,7,170,8],[174,5,174,6],[181,5,181,6],[181,7,183,8],[182,5,182,6],[184,7,184,8],[185,7,185,8],[177,7,177,8],[178,7,178,8],[174,7,176,8],[175,5,175,6],[126,16,126,17],[254,11,254,12],[191,7,191,8],[192,7,192,8],[188,5,188,6],[188,7,190,8],[189,5,189,6],[145,5,145,6],[147,5,147,6],[136,13,138,13],[147,12,147,13],[154,2,159,2],[161,2,166,2],[104,2,104,4],[109,2,112,2],[114,2,117,2],[124,2,124,5],[126,2,129,2],[132,2,135,2],[113,13,115,13],[100,11,100,12],[101,11,101,12],[123,11,123,12],[124,11,124,12],[121,11,121,12],[74,32,74,33],[78,38,78,39],[83,38,83,39],[92,17,92,18],[106,2,106,5],[96,17,96,18],[104,16,104,17],[95,11,95,14],[95,17,95,18],[98,11,98,12],[78,40,79,40],[83,40,85,40],[84,38,84,39],[67,38,67,39],[67,40,69,40],[68,38,68,39],[71,38,71,39],[71,40,73,40],[72,38,72,39],[1,4,1,5],[106,27,106,28],[95,22,97,22],[141,32,141,33],[10,32,10,33],[11,32,11,33],[24,32,24,33],[25,32,25,33],[38,32,38,33],[39,32,39,33],[52,32,52,33],[53,32,53,33],[63,32,63,33],[76,32,76,33],[95,23,97,23],[120,23,122,23]]}
[]
[null,null,null,null,null,null,null,null,null,null,null,null,null,null,"Estado Civil"]
[null,null,null,null,null,null,null,null,null,null,null,null,null,null,"Solteiro / Viúvo / Divorciado",0]
[null,null,null,null,null,null,null,null,null,null,null,null,null,null,"Casado / Unido de facto",1]
[]
[]
[null,null,null,null,null,null,null,null,null,null,null,null,null,null,"Número de Filhos"]
[null,null,null,null,null,null,null,null,null,null,null,null,null,null,0]
[null,null,null,null,null,null,null,null,null,null,null,null,null,null,1]
[null,null,null,null,null,null,null,null,null,null,null,null,null,null,2]
[null,null,null,null,null,null,null,null,null,null,null,null,null,null,3]
[null,null,null,null,null,null,null,null,null,null,null,null,null,null,4]
[null,"DESCRIÇÃO",null,null,null,2024,2025,null,null,null,null,null,null,null,5]
[]
[null,null,null,null,null,null,null,null,null,null,null,null,null,null,"Número de Ascendentes"]
[null,"RENDIMENTO BRUTO",null,null,null,null,null,null,null,null,null,null,null,null,0]
[null,"TRABALHO DEPENDENTE",null,null,null,{"$f":"G17","v":0},{"$f":"H120","v":0},null,null,null,null,null,null,null,1]
[null,"PENSÕES DE VELHICE",null,null,null,{"$f":"G18","v":0},{"$f":"H138","v":0},null,null,null,null,null,null,null,2]
[null,null,null,null,null,null,null,null,null,null,null,null,null,null,3]
[null,"TOTAL ",null,null,null,0,{"$f":"G17+G18","v":0},null,null,null,null,null,null,null,4]
[null,null,null,null,null,0]
[null,"DEDUÇÕES ESPECÍFICAS",null,null,null,0]
[null,"TRABALHO DEPENDENTE",null,null,null,{"$f":"G122","v":0},{"$f":"H122","v":0},null,null,null,null,null,null,null,"Tributação conjunta"]
[null,null,null,null,null,0,null,null,null,null,null,null,null,null,"Tributação separada"]
[null,null,null,null,null,0]
[null,"PENSÕES",null,null,null,0,{"$f":"H140","v":0}]
[null,"TOTAL",null,null,null,{"$f":"G122","v":0},{"$f":"G23+G26","v":0}]
[]
[null,"ABATIMENTO MÍNIMO DE EXISTÊNCIA",null,null,null,{"$f":"T66","v":0},{"$f":"M66","v":0}]
[]
[null,"RENDIMENTO COLETÁVEL",null,null,null,{"$f":"F20-F27-F29","v":0},{"$f":"G20-G27-G29","v":0}]
[]
[]
[]
[]
[]
[null,"CÁLCULO DO IMPOSTO:"]
[null,"    COEFICIENTE CONJUGAL",null,null,null,{"$f":"IF((IF($C$89=1,F31,IF(AND($C$99=2,$C$89=2),F31,F31/2)))<0,0,(IF($C$89=1,F31,IF(AND($C$99=2,$C$89=2),F31,F31/2))))","v":0},{"$f":"IF((IF($C$89=1,G31,IF(AND($C$99=2,$C$89=2),G31,G31/2)))<0,0,(IF($C$89=1,G31,IF(AND($C$99=2,$C$89=2),G31,G31/2))))","v":0}]
[null,"    TAXA A APLICAR",null,null,null,{"$f":"VLOOKUP($F$38,$L$104:$O$112,3,TRUE)","v":0.13},{"$f":"VLOOKUP($G$38,$L$127:$O$135,3,TRUE)","v":0.13}]
[null,"    APLICAÇÃO DE TAXA PROGRESSIVA",null,null,null,{"$f":"IFERROR(ROUND(F39*F38,2),\"\")","v":0},{"$f":"IFERROR(ROUND(G39*G38,2),\"\")","v":0}]
[null,"    PARCELA A ABATER",null,null,null,{"$f":"VLOOKUP($F$38,$L$104:$O$112,4,TRUE)","v":0},{"$f":"VLOOKUP($G$38,$L$127:$O$135,4,TRUE)","v":0}]
[null,"TAXA DE SOLIDARIEDADE",null,null,null,{"$f":"IF($C$89=1,((VLOOKUP(F38,$Q$106:$T$108,3,TRUE)*F38)-VLOOKUP(F38,$Q$106:$T$108,4,TRUE)),IF(AND($C$89=2,$C$99=1),((VLOOKUP(F38,$Q$106:$T$108,3,TRUE)*F38)-VLOOKUP(F38,$Q$106:$T$108,4,TRUE))*2,((VLOOKUP(F38,$Q$106:$T$108,3,TRUE)*F38)-VLOOKUP(F38,$Q$106:$T$108,4,TRUE))))","v":0},{"$f":"IF($C$89=1,((VLOOKUP(G38,$Q$128:$T$130,3,TRUE)*G38)-VLOOKUP(G38,$Q$128:$T$130,4,TRUE)),IF(AND($C$89=2,$C$99=1),((VLOOKUP(G38,$Q$128:$T$130,3,TRUE)*G38)-VLOOKUP(G38,$Q$128:$T$130,4,TRUE))*2,((VLOOKUP(G38,$Q$128:$T$130,3,TRUE)*G38)-VLOOKUP(G38,$Q$128:$T$130,4,TRUE))))","v":0}]
[null,null,null,null,null,null,null,null,null,null,null,"Minímo de Existência de 2025 - Abatimento",null,null,null,null,null,null,"Minímo de Existência de 2024 - Abatimento"]
[null,"     SUB-TOTAL",null,null,null,{"$f":"IFERROR(ROUND((F40-F41+F42),2),\"\")","v":0},{"$f":"IFERROR(ROUND((G40-G41+G42),2),\"\")","v":0},null,null,null,null,null,null,"IAS*1,5*14",null,null,null,null,null,null,"IAS*1,5*14"]
[null,null,null,null,null,null,null,null,null,null,null,"IAS 2024",{"$f":"M76","v":509.26},{"$f":"M45*1.5*14","v":10694.46}]
[null,"COLETA",null,null,null,{"$f":"IF($C$89=1,F44,IF(AND($C$89=2,$C$99=1),(F40-F41)*2+F42,F40-F41+F42))","v":0},{"$f":"IF($C$89=1,G44,IF(AND($C$89=2,$C$99=1),(G40-G41)*2+G42,G40-G41+G42))","v":0}]
[null,null,null,null,null,null,null,null,null,null,null,"IAS 2025",{"$f":"N76","v":509.26},{"$f":"M47*1.5*14","v":10694.46},null,null,null,null,"IAS 2024",{"$f":"M76","v":509.26},{"$f":"T47*1.5*14","v":10694.46}]
[null,"DEDUÇÕES À COLECTA"]
[null,"DEDUÇÕES DEPENDENTES E ASCENDENTES",null,null,null,{"$f":"G164+G165","v":0},{"$f":"H164+H165","v":0},null,null,null,null,"Valor de Referência",{"$f":"N73","v":12180},null,null,null,null,null,"Valor de Referência",{"$f":"M73","v":11480}]
[null,"DESPESAS GERAIS",null,null,null,{"$f":"IF(C89=1,IF(C93<>0,IF(0.45*G93>335,335,0.45*G93),IF(0.35*G93>250,250,0.35*G93)),IF(C99=1,IF(0.35*G93>500,500,0.35*G93),IF(0.35*G93>250,250,0.35*G93)))","v":0},{"$f":"IF(C89=1,IF(C93<>0,IF(0.45*G93>335,335,0.45*G93),IF(0.35*G93>250,250,0.35*G93)),IF(C99=1,IF(0.35*G93>500,500,0.35*G93),IF(0.35*G93>250,250,0.35*G93)))","v":0},null,null,null,null,"Maior entre",{"$f":"MAX(N47,M49)","v":12180},null,null,null,null,null,"Maior entre",{"$f":"MAX(U47,T49)","v":11480}]
[null,null,null,null,null,null,null,null,null,null,null,"Limite despesas gerais",250,null,null,null,null,null,"Limite despesas gerais",250]
[null,"DESPESAS DE SAÚDE",null,null,null,{"$f":"IF(C89=1,IF(G88*0.15>1000,1000,0.15*G88),IF(C99=2,IF(G88*0.075>500,500,0.075*G88),IF(G88*0.15>1000,1000,0.15*G88)))","v":0},{"$f":"IF(C89=1,IF(G88*0.15>1000,1000,0.15*G88),IF(C99=2,IF(G88*0.075>500,500,0.075*G88),IF(G88*0.15>1000,1000,0.15*G88)))","v":0},null,null,null,null,"Taxa 1º escalão",{"$f":"N127","v":0.13},null,null,null,null,null,"Taxa 1º escalão",{"$f":"N104","v":0.13}]
[null,"DESPESAS DE EDUCAÇÃO",null,null,null,{"$f":"IF($C$89=1,IF($G$89*0.3>800,800,0.3*$G$89),IF($C$99=2,IF($G$89*0.15>400,400,0.15*$G$89),IF($G$89*0.3>800,800,0.3*$G$89)))","v":0},{"$f":"IF($C$89=1,IF($G$89*0.3>800,800,0.3*$G$89),IF($C$99=2,IF($G$89*0.15>400,400,0.15*$G$89),IF($G$89*0.3>800,800,0.3*$G$89)))","v":0},null,null,null,null,"L",{"$f":"M50-M51/(M52*3.6)+M127/3.6","v":13884.423076923076},null,null,null,null,null,"L",{"$f":"T50-T51/(T52*3.6)+M104/3.6","v":13085.534188034188}]
[null,"ENCARGOS COM IMÓVEIS - JUROS",null,null,null,{"$f":"IF($C$98<=2011,IF($C$89=1,IF(F38>30000,IF($G$90*0.15>296,296,$G$90*0.15),IF(0.15*$G$90>VLOOKUP(F38,$F$178:$I$179,3,TRUE),VLOOKUP(F38,$F$178:$I$179,3,TRUE),0.15*$G$90)),IF($C$99=2,IF(F38>30000,IF($G$90*0.075>148,148,$G$90*0.075),IF(0.075*$G$90>0.5*VLOOKUP(F38,$F$178:$I$179,3,TRUE),0.5*VLOOKUP(F38,$F$178:$I$179,3,TRUE),0.075*$G$90)),IF($C$99=1,IF(F38>30000,IF($G$90*0.15>296,296,$G$90*0.15),IF(0.15*$G$90>VLOOKUP(F38,$F$178:$I$179,3,TRUE),VLOOKUP(F38,$F$178:$I$179,3,TRUE),0.15*$G$90)),0))))","v":0},{"$f":"IF($C$98<=2011,IF($C$89=1,IF(G38>30000,IF($G$90*0.15>296,296,$G$90*0.15),IF(0.15*$G$90>VLOOKUP(G38,$F$178:$I$179,3,TRUE),VLOOKUP(G38,$F$178:$I$179,3,TRUE),0.15*$G$90)),IF($C$99=2,IF(G38>30000,IF($G$90*0.075>148,148,$G$90*0.075),IF(0.075*$G$90>0.5*VLOOKUP(G38,$F$178:$I$179,3,TRUE),0.5*VLOOKUP(G38,$F$178:$I$179,3,TRUE),0.075*$G$90)),IF($C$99=1,IF(G38>30000,IF($G$90*0.15>296,296,$G$90*0.15),IF(0.15*$G$90>VLOOKUP(G38,$F$178:$I$179,3,TRUE),VLOOKUP(G38,$F$178:$I$179,3,TRUE),0.15*$G$90)),0))))","v":0}]
[null,"RENDAS",null,null,null,{"$f":"IF($C$89=1,IF(F38>30000,IF($G$91*0.15>600,600,$G$91*0.15),IF(0.15*$G$91>VLOOKUP(F38,$F$171:$I$172,3,TRUE),VLOOKUP(F38,$F$171:$I$172,3,TRUE),0.15*$G$91)),IF($C$99=2,IF(F38>30000,IF($G$91*0.075>300,300,$G$91*0.075),IF(0.075*$G$91>0.5*VLOOKUP(F38,$F$171:$I$172,3,TRUE),0.5*VLOOKUP(F38,$F$171:$I$172,3,TRUE),0.075*$G$91)),IF(F38>30000,IF($G$91*0.15>600,600,$G$91*0.15),IF(0.15*$G$91>VLOOKUP(F38,$F$171:$I$172,3,TRUE),VLOOKUP(F38,$F$171:$I$172,3,TRUE),0.15*$G$91))))","v":0},{"$f":"IF($C$89=1,IF(G38>30000,IF($G$91*0.15>700,700,$G$91*0.15),IF(0.15*$G$91>VLOOKUP(G38,$F$171:$I$172,3,TRUE),VLOOKUP(G38,$F$171:$I$172,3,TRUE),0.15*$G$91)),IF($C$99=2,IF(G38>30000,IF($G$91*0.075>350,350,$G$91*0.075),IF(0.075*$G$91>0.5*VLOOKUP(G38,$F$171:$I$172,3,TRUE),0.5*VLOOKUP(G38,$F$171:$I$172,3,TRUE),0.075*$G$91)),IF(G38>30000,IF($G$91*0.15>700,700,$G$91*0.15),IF(0.15*$G$91>VLOOKUP(G38,$F$171:$I$172,3,TRUE),VLOOKUP(G38,$F$171:$I$172,3,TRUE),0.15*$G$91))))","v":0},null,null,null,null,"Art. 70.º, n.º 4",null,"2,2*IAS*14","Casados?",{"$f":"'Simular IRS'!$F$8=\"Casado / Unido de facto\"","v":false},"casado=2, solteiro=1",null,"Art. 70.º, n.º 4",null,"2,2*IAS*14","Casados?",{"$f":"'Simular IRS'!$F$8=\"Casado / Unido de facto\"","v":false},"casado=2, solteiro=1"]
[null,"PENSÃO DE ALIMENTOS",null,null,null,{"$f":"0.2*G92","v":0},{"$f":"0.2*G92","v":0},null,null,null,null,"Condição fatal",{"$f":"G20>N56","v":false},{"$f":"2.2*14*M47*Q56","v":15685.208000000002},"Tribut conjunta?",{"$f":"IF(AND($P$55=TRUE,Tipo_Tributacao=\"Tributação conjunta\"),TRUE,FALSE)","v":false},{"$f":"IF(P56=TRUE,2,1)","v":1},null,"Condição fatal",{"$f":"F20>U56","v":false},{"$f":"2.2*14*T47*X56","v":15685.208000000002},"Tribut conjunta?",{"$f":"IF(AND($P$55=TRUE,Tipo_Tributacao=\"Tributação conjunta\"),TRUE,FALSE)","v":false},{"$f":"IF(W56=TRUE,2,1)","v":1}]
[null,"TOTAL (SAUDE; EDUCAÇÃO; IMOVEIS; RENDAS; PENSÕES DE ALIMENTOS)",null,null,null,{"$f":"SUM(F52:F56)","v":0},{"$f":"SUM(G52:G56)","v":0},null,null,null,null,null,null,null,null,null,null,null,null,null,{"$f":"U56/14","v":1120.3720000000001}]
[null,"CONTRIBUIÇÕES PARA PPR",null,null,null,{"$f":"IF(F18=0,IF('Simular IRS'!G20<35,IF(0.2*'BIG SIMULATOR'!G94>400,400,0.2*'BIG SIMULATOR'!G94),IF(AND('Simular IRS'!G20>=35,'Simular IRS'!G20<=50),IF(0.2*'BIG SIMULATOR'!G94>350,350,0.2*'BIG SIMULATOR'!G94),IF(0.2*'BIG SIMULATOR'!G94>300,300,0.2*'BIG SIMULATOR'!G94)))+IF('Simular IRS'!G22<35,IF(0.2*'BIG SIMULATOR'!G95>400,400,0.2*'BIG SIMULATOR'!G95),IF(AND('Simular IRS'!G22>=35,'Simular IRS'!G22<=50),IF(0.2*'BIG SIMULATOR'!G95>350,350,0.2*'BIG SIMULATOR'!G95),IF(0.2*'BIG SIMULATOR'!G95>300,300,0.2*'BIG SIMULATOR'!G95))),0)","v":0},{"$f":"IF(G18=0,IF('Simular IRS'!G20<35,IF(0.2*'BIG SIMULATOR'!G94>400,400,0.2*'BIG SIMULATOR'!G94),IF(AND('Simular IRS'!G20>=35,'Simular IRS'!G20<=50),IF(0.2*'BIG SIMULATOR'!G94>350,350,0.2*'BIG SIMULATOR'!G94),IF(0.2*'BIG SIMULATOR'!G94>300,300,0.2*'BIG SIMULATOR'!G94)))+IF('Simular IRS'!G22<35,IF(0.2*'BIG SIMULATOR'!G95>400,400,0.2*'BIG SIMULATOR'!G95),IF(AND('Simular IRS'!G22>=35,'Simular IRS'!G22<=50),IF(0.2*'BIG SIMULATOR'!G95>350,350,0.2*'BIG SIMULATOR'!G95),IF(0.2*'BIG SIMULATOR'!G95>300,300,0.2*'BIG SIMULATOR'!G95))),0)","v":0}]
[null,"ENCARGOS COM DONATIVOS",null,null,null,{"$f":"IF(0.25*G96*1.3>0.15*F46,0.15*F46,0.25*G96*1.3)","v":0},{"$f":"IF(0.25*G96*1.3>0.15*G46,0.15*G46,0.25*G96*1.3)","v":0},null,null,null,null,"Limite máx Abatimento",{"$f":"G20-G27","v":0},"-> via Art. 70, n.º 2, d) CIRS",null,null,null,null,"Limite máx Abatimento",{"$f":"F20-F27","v":0},"-> via Art. 70, n.º 2, d) CIRS"]
[null,"TOTAL (EBF)",null,null,null,{"$f":"SUM(F58:F59)","v":0},{"$f":"SUM(G58:G59)","v":0}]
[null,null,null,null,null,null,null,null,null,null,null,"Condições abatimento","Valor","Aplicável?","Valor abatimento",null,null,null,"Condições abatimento","Valor","Aplicável?","Valor abatimento"]
[null,"LIMITE OU SOMA",null,null,null,{"$f":"IF($C$89=1,MIN(F57+F60,VLOOKUP(F38,$L$117:$N$119,3,TRUE)),IF($C$99=2,MIN(F57+F60,0.5*VLOOKUP(F38,$L$117:$N$119,3,TRUE)),MIN(F57+F60,VLOOKUP(F38,$L$117:$N$119,3,TRUE))))","v":0},{"$f":"IF($C$89=1,MIN(G57+G60,VLOOKUP(G38,$L$117:$N$119,3,TRUE)),IF($C$99=2,MIN(G57+G60,0.5*VLOOKUP(G38,$L$117:$N$119,3,TRUE)),MIN(G57+G60,VLOOKUP(G38,$L$117:$N$119,3,TRUE))))","v":0},null,null,null,null,"RB <= VF",{"$f":"M49-(G23/Q56+M51/M52)","v":10256.923076923076},{"$f":"$G$20<=$M$49*Q56","v":true},{"$f":"IF(N62=TRUE,M62,0)*Q56","v":10256.923076923076},{"$f":"IF(O62<0,\"'-> Valor negativo, logo abatimento N/A\",\"\")","v":""},null,null,"RB <= VF",{"$f":"T49-(F23/X56+T51/T52)","v":9556.9230769230762},{"$f":"$F$20<=$T$49*X56","v":true},{"$f":"IF(U62=TRUE,T62,0)*X56","v":9556.9230769230762},{"$f":"IF(V62<0,\"'-> Valor negativo, logo abatimento N/A\",\"\")","v":""}]
[null,null,null,null,null,null,null,null,null,null,null,"RB > VF & RB < L",{"$f":"(M49-2.6*(G20/Q56-M49))-(G27/Q56+M51/M52)","v":41924.923076923078},{"$f":"AND($G$20>$M$49*Q56,$G$20<M53*Q56)","v":false},{"$f":"IF(N63=TRUE,M63,0)*Q56","v":0},"",null,null,"RB > VF & RB < L",{"$f":"(T49-2.6*(F20/X56-T49))-(F27/X56+T51/T52)","v":39404.923076923078},{"$f":"AND($F$20>$T$49*X56,$F$20<T53*X56)","v":false},{"$f":"IF(U63=TRUE,T63,0)*X56","v":0},""]
[null,null,null,null,null,null,null,null,null,null,null,"RB > L",{"$f":"(M53-M127-1.35*(G20/Q56-M53))-(G27/Q56)","v":24569.394230769227},{"$f":"$G$20>$M$53*Q56","v":false},{"$f":"IF(N64=TRUE,M64,0)*Q56","v":0},null,null,null,"RB > L",{"$f":"(T53-M127-1.35*(F20/X56-T53))-(F27/X56)","v":22692.005341880344},{"$f":"$F$20>$T$53*X56","v":false},{"$f":"IF(U64=TRUE,T64,0)*X56","v":0}]
[null,"TOTAL DAS DEDUÇÕES",null,null,null,{"$f":"MIN(F49+F62+F50,F46)","v":0},{"$f":"MIN(G49+G62+G50,G46)","v":0},null,null,null,null,null,null,null,{"$f":"IF(M56=TRUE,0,MAX(0,SUM(O62:O64)))","v":10256.923076923076},"-> Abatimento a considerar",null,null,null,null,null,{"$f":"IF(T56=TRUE,0,SUM(V62:V64))","v":9556.9230769230762},"-> Abatimento a considerar"]
[null,null,null,null,null,null,null,null,null,null,null,"Abatimento final",{"$f":"IF(MIN(O65,M59)>0,MIN(O65,M59),0)","v":0},{"$f":"IF(M56=TRUE,\"Abatimento não é aplicável porque se verifica a condição fatal\",\"\")","v":""},null,null,null,null,"Abatimento final",{"$f":"IF(MIN(V65,T59)>0,MIN(V65,T59),0)","v":0},{"$f":"IF(T56=TRUE,\"Abatimento não é aplicável porque se verifica a condição fatal\",\"\")","v":""}]
[null,"IMPOSTO APURADO",null,null,null,{"$f":"IF(F46-F65<0,0,F46-F65)","v":0},{"$f":"IF(G46-G65<0,0,G46-G65)","v":0}]
[]
[]
[]
[]
[null,null,null,null,null,null,null,null,null,null,null,"SMN 2023","SMN 2024","SMN 2025"]
[null,null,null,null,null,null,null,null,null,null,null,{"$f":"760*14","v":10640},{"$f":"820*14","v":11480},{"$f":"870*14","v":12180}]
[null,"       RENDIMENTO LÍQUIDO",null,null,null,{"$f":"F20-F67","v":0},{"$f":"G20-G67","v":0}]
[null,null,null,null,null,null,null,null,null,null,null,"IAS 2023","IAS 2024","IAS 2025"]
[null,null,null,null,null,null,null,null,null,null,null,480.43,509.26,509.26]
[]
[]
[]
[null,"TAXA EFETIVA",null,null,null,{"$f":"IFERROR(F67/F20,0)","v":0},{"$f":"IFERROR(G67/G20,0)","v":0}]
[]
[null,null,null,null,null,null,null,null,null,null,null,"RENDIMENTO",null,"Sujeito Passivo A","Sujeito Passivo B"]
[null,"DIFERENÇA RENDIMENTO LÍQUIDO",null,null,null,null,{"$f":"G74-F74","v":0}]
[null,null,null,null,null,null,null,null,null,null,null,"RENDIMENTO DO TRABALHO",null,{"$f":"'Simular IRS'!G27","v":0},{"$f":"'Simular IRS'!L27","v":0}]
[]
[null,null,null,null,null,"DEDUÇÕES À COLETA",null,null,null,null,null,"PENSÕES VELHICE",null,{"$f":"'Simular IRS'!G30","v":0},{"$f":"'Simular IRS'!L30","v":0}]
[]
[null,null,{"$f":"'Simular IRS'!F8","v":0},null,null,"Despesas de saúde",{"$f":"'Simular IRS'!G35","v":0},null,null,null,null,null,"TOTAL",{"$f":"SUM(N84,O84,N86,O86)","v":0}]
[null,"Estado Civil: Solteiro (1), Casado (2)",{"$f":"IF(C88=\"Casado / Unido de facto\",2,1)","v":1},null,null,"Despesas de educação",{"$f":"'Simular IRS'!G37","v":0}]
[null,"≤3",{"$f":"'Simular IRS'!F12","v":0},null,null,"Encargos com imóveis - juros",{"$f":"'Simular IRS'!G42","v":0}]
[null,">3e ≤6",{"$f":"'Simular IRS'!F14","v":0},null,null,"Rendas",{"$f":"'Simular IRS'!G44","v":0}]
[null,">6",{"$f":"'Simular IRS'!F16","v":0},null,null,"Pensão de alimentos",{"$f":"'Simular IRS'!G48","v":0}]
[null,"Nº de dependentes*:",{"$f":"C90+C91+C92","v":0},null,null,"Despesas Gerais",{"$f":"'Simular IRS'!G46","v":0}]
[null,"Nº de ascendentes",{"$f":"'Simular IRS'!F18","v":0},null,null,"PPR A",{"$f":"'Simular IRS'!G52","v":0}]
[null,null,null,null,null,"PPR B",{"$f":"'Simular IRS'!G54","v":0}]
[null,null,null,null,null,"Donativos",{"$f":"'Simular IRS'!G56","v":0},null,null,null,null,"Taxas IRS e limites dedução à coleta"]
[]
[null,"Ano de contrato",{"$f":"'Simular IRS'!G40","v":0}]
[null,"Tipo de tributação",{"$f":"IF(C100=\"Tributação separada\",2,1)","v":1},null,null,null,null,null,null,null,null,2024,null,"Continente"]
[null,null,{"$f":"'Simular IRS'!F10","v":0}]
[null,null,null,null,null,null,null,null,null,null,null,"Rendimento colectável",null,"Taxa","Parcela "]
[null,null,null,null,null,null,null,null,null,null,null,"(Euros)",null,"(%)","Abater"]
[null,null,null,null,null,null,null,null,null,null,null,"De","Até",null,"(Euros)",null,"TAXA ADICIONAL DE SOLIDARIEDADE"]
[null,null,null,null,null,null,null,null,null,null,null,0,7703,0.13,0]
[null,null,"RENDIMENTO",null,null,null,"dedução específica 2023",4104,null,null,null,7703,11623,0.16500000000000001,269.61,null,"Escalões",null,"Taxa","Parcela"]
[null,null,null,null,null,null,null,null,null,null,null,11623,16472,0.22,908.92,null,0,80000,0,0]
[null,null,"Trabalho Dependente - Dedução específica",null,null,null,null,null,null,null,null,16472,21321,0.25,1403.08,null,80000,250000,2.5000000000000001E-2,2000]
[null,null,null,null,null,null,2024,2025,null,null,null,21321,27146,0.32,2895.61,null,250000,9.9999999999999904E+16,0.05,8250]
[null,null,null,null,null,null,null,null,null,null,null,27146,39791,0.35499999999999998,3845.5]
[null,null,"Sujeito Passivo A","Rendimento do trabalho dependente do sujeito passivo A",null,null,{"$f":"N84","v":0},{"$f":"N84","v":0},null,null,null,39791,43000,0.435,7029.08]
[null,null,null,"Contribuições obrigatórias para a SS",null,null,{"$f":"0.11*G110","v":0},{"$f":"0.11*H110","v":0},null,null,null,43000,80000,0.45,7673.78]
[null,null,null,"Dedução mínima prevista para rendimentos da categoria",null,null,{"$f":"$H$105*(1+($M$76-$L$76)/$L$76)","v":4350.275877859418},{"$f":"8.54*N76","v":4349.0803999999998},null,null,null,80000,999999999,0.48,10073.6]
[null,null,null,"Dedução aplicável",null,null,{"$f":"IF(G110>=G112,IF(G111=0,G112,IF(G111>G112,G111,G112)),G110)","v":0},{"$f":"IF(H110>=H112,IF(H111=0,H112,IF(H111>H112,H111,H112)),H110)","v":0}]
[null,null,null,null,null,null,null,null,null,null,null,null,null,"Limite das deduções à colecta"]
[null,null,"Sujeito Passivo B","Rendimento do trabalho dependente do sujeito passivo B",null,null,{"$f":"O84","v":0},{"$f":"O84","v":0}]
[null,null,null,"Contribuições obrigatórias para a SS",null,null,{"$f":"G115*0.11","v":0},{"$f":"H115*0.11","v":0}]
[null,null,null,"Dedução mínima prevista para rendimentos da categoria",null,null,{"$f":"$H$105*(1+($M$76-$L$76)/$L$76)","v":4350.275877859418},{"$f":"8.54*N76","v":4349.0803999999998},null,null,null,0,{"$f":"M104","v":7703},9999999]
[null,null,null,"Dedução aplicável",null,null,{"$f":"IF(G115>=G117,IF(G116=0,G117,IF(G116>G117,G116,G117)),G115)","v":0},{"$f":"IF(H115>=H117,IF(H116=0,H117,IF(H116>H117,H116,H117)),H115)","v":0},null,null,null,{"$f":"M117","v":7703},80000,{"$f":"IF(C93>2,(1+(0.05*C93))*(1000+(1500*((80000-H38)/(80000-7116)))),1000+(1500*((80000-H38)/(80000-7116))))","v":2646.4518961637673}]
[null,null,null,null,null,null,null,null,null,null,null,80000,99999999999,{"$f":"IF(C93>2,(1+(0.05*C93))*1000,1000)","v":1000}]
[null,null,"TOTAL SP A+B","RENDIMENTO BRUTO DA CATEGORIA",null,null,{"$f":"G110+G115","v":0},{"$f":"H110+H115","v":0}]
[]
[null,null,"TOTAL SP A+B","DEDUÇÃO ESPECÍFICA AOS REND. CATEGORIA ",null,null,{"$f":"G113+G118","v":0},{"$f":"H113+H118","v":0},null,null,null,2025,null,"Continente"]
[]
[null,null,null,null,null,null,null,null,null,null,null,"Rendimento colectável",null,"Taxa","Parcela "]
[null,null,"Pensões - Dedução específica",null,null,null,null,null,null,null,null,"(Euros)",null,"(%)","Abater",null,"TAXA ADICIONAL DE SOLIDARIEDADE"]
[null,null,null,null,null,null,null,null,null,null,null,"De","Até",null,"(Euros)"]
[null,null,"Sujeito Passivo A","Pensões de velhice",null,null,{"$f":"N86","v":0},{"$f":"N86","v":0},null,null,null,0,8059,0.13,0,null,"Escalões",null,"Taxa","Parcela"]
[null,null,null,"Total de Pensões",null,null,{"$f":"G127","v":0},{"$f":"G127","v":0},null,null,null,8059,12160,0.16500000000000001,282.07,null,0,80000,0,0]
[null,null,null,"Dedução mínima prevista para rendimentos da categoria",null,null,{"$f":"$H$105*(1+($M$76-$L$76)/$L$76)","v":4350.275877859418},{"$f":"8.54*N76","v":4349.0803999999998},null,null,null,12160,17233,0.22,950.91,null,80000,250000,2.5000000000000001E-2,2000]
[null,null,null,"Dedução aplicável",null,null,{"$f":"IF(G128<G129,G128,G129)","v":0},{"$f":"IF(H128<H129,H128,H129)","v":0},null,null,null,17233,22306,0.25,1467.91,null,250000,9.9999999999999904E+16,0.05,8250]
[null,null,null,null,null,null,null,null,null,null,null,22306,28400,0.32,3029.38]
[null,null,null,null,null,null,null,null,null,null,null,28400,41629,0.35499999999999998,4023.14]
[null,null,"Sujeito Passivo B","Pensões de velhice",null,null,{"$f":"O86","v":0},{"$f":"O86","v":0},null,null,null,41629,44987,0.435,7353.76]
[null,null,null,"Total de Pensões",null,null,{"$f":"G133","v":0},{"$f":"H133","v":0},null,null,null,44987,83696,0.45,8028.38]
[null,null,null,"Dedução mínima prevista para rendimentos da categoria",null,null,{"$f":"$H$105*(1+($M$76-$L$76)/$L$76)","v":4350.275877859418},{"$f":"8.54*N76","v":4349.0803999999998},null,null,null,83696,999999999,0.48,10539]
[null,null,null,"Dedução aplicável",null,null,{"$f":"IF(G134<4104,G134,4104)","v":0},{"$f":"IF(H134<4104,H134,4104)","v":0}]
[null,null,null,null,null,null,null,null,null,null,null,null,null,"Limite das deduções à colecta"]
[null,null,"TOTAL SP A+B","RENDIMENTO BRUTO DA CATEGORIA",null,null,{"$f":"G133+G127","v":0},{"$f":"H133+H127","v":0}]
[]
[null,null,"TOTAL SP A+B","DEDUÇÃO ESPECÍFICA AOS REND. CATEGORIA ",null,null,{"$f":"G130+G136","v":0},{"$f":"H130+H136","v":0},null,null,null,0,{"$f":"M127","v":8059},9999999]
[null,null,null,null,null,null,null,null,null,null,null,{"$f":"M140","v":8059},80000,{"$f":"IF(C116>2,(1+(0.05*C116))*(1000+(1500*((80000-H61)/(80000-7116)))),1000+(1500*((80000-H61)/(80000-7116))))","v":2646.4518961637673}]
[null,null,null,null,null,null,null,null,null,null,null,80000,99999999999,{"$f":"IF(C116>2,(1+(0.05*C116))*1000,1000)","v":1000}]
[]
[null,null,null,null,null,"Número de Dependentes"]
[null,null,null,null,null,"Idade ≤ 3 anos a 31/12",null,{"$f":"C90","v":0}]
[null,null,null,null,null,"Idade >3 anos e ≤ 6 anos a 31/12",null,{"$f":"C91","v":0}]
[null,null,null,null,null,"Idade > 6 anos a 31/12",null,{"$f":"C92","v":0}]
[null,null,null,null,null,"Total",null,{"$f":"H145+H146+H147","v":0},null,null,null,null,2025]
[null,null,null,null,null,"Número de Ascendentes",null,null,null,null,null,null,4.3999999999999997E-2]
[null,null,null,null,null,"Ascendentes",null,{"$f":"+C94","v":0},null,null,null,"t.v. PIB/t",3.0000000000000001E-3]
[null,null,null,null,null,null,null,null,null,null,null,"Taxa de atualização art.º68-B nº3",{"$f":"(1+M149)*(1+M150)","v":1.047132}]
[]
[]
[null,null,null,null,null,null,2024,2025]
[]
[null,null,null,null,null,"Dependentes com 3 anos ou menos (sem maj)",726,726]
[null,null,null,null,null,"Dependentes com 3 anos ou menos (com maj)",900,900]
[null,null,null,null,null,"Dependentes entre 4 e 6 anos (com maj)",900,900]
[null,null,null,null,null,"Dependentes com mais de 6 anos",600,600]
[null,null,null,null,null,"Ascendentes (mais do que 1)",525,525]
[null,null,null,null,null,"Ascendentes (apenas 1)",635,635]
[]
[null,null,null,null,null,null,2024,2025]
[null,null,null,null,null,"Dedução dependentes",{"$f":"IF(AND(C89=2,C99=2,H148<2),(G156/2)*H145+(G159/2)*(H146+H147),IF(AND(C89=2,C99=2,H147>0),G159/2*H147+G158/2*H146+G157/2*H145,IF(AND(C89=2,C99=2,H146>1,H145=0),G159/2+G158/2*(H146-1),IF(AND(C89=2,C99=2,H145>1,H146=0),G156/2+G157/2*(H145-1),IF(AND(C89=2,C99=2,H145>0,H146>0),G159/2+G158/2*(H146-1)+G157/2*H145,IF(AND(C89=2,C99=1,H148<2),G156*H145+G159*(H146+H147),IF(AND(C89=2,C99=1,H147>0),G159*H147+G158*H146+G157*H145,IF(AND(C89=2,C99=1,H146>1,H145=0),G159+G158*(H146-1),IF(AND(C89=2,C99=1,H145>1,H146=0),G156+G157*(H145-1),IF(AND(C89=2,C99=1,H145>0,H146>0),G159+G158*(H146-1)+G157*H145,IF(AND(C89=1,H148<2),G156*H145+G159*(H146+H147),IF(AND(C89=1,H147>0),G159*H147+G158*H146+G157*H145,IF(AND(C89=1,H146>1,H145=0),G159+G158*(H146-1),IF(AND(C89=1,H145>1,H146=0),G156+G157*(H145-1),IF(AND(C89=1,H145>0,H146>0),G159+G158*(H146-1)+G157*H145)))))))))))))))","v":0},{"$f":"IF(AND(C89=2,C99=2,H148<2),(H156/2)*H145+(H159/2)*(H146+H147),IF(AND(C89=2,C99=2,H147>0),H159/2*H147+H158/2*H146+H157/2*H145,IF(AND(C89=2,C99=2,H146>1,H145=0),H159/2+H158/2*(H146-1),IF(AND(C89=2,C99=2,H145>1,H146=0),H156/2+H157/2*(H145-1),IF(AND(C89=2,C99=2,H145>0,H146>0),H159/2+H158/2*(H146-1)+H157/2*H145,IF(AND(C89=2,C99=1,H148<2),H156*H145+H159*(H146+H147),IF(AND(C89=2,C99=1,H147>0),H159*H147+H158*H146+H157*H145,IF(AND(C89=2,C99=1,H146>1,H145=0),H159+H158*(H146-1),IF(AND(C89=2,C99=1,H145>1,H146=0),H156+H157*(H145-1),IF(AND(C89=2,C99=1,H145>0,H146>0),H159+H158*(H146-1)+H157*H145,IF(AND(C89=1,H148<2),H156*H145+H159*(H146+H147),IF(AND(C89=1,H147>0),H159*H147+H158*H146+H157*H145,IF(AND(C89=1,H146>1,H145=0),H159+H158*(H146-1),IF(AND(C89=1,H145>1,H146=0),H156+H157*(H145-1),IF(AND(C89=1,H145>0,H146>0),H159+H158*(H146-1)+H157*H145)))))))))))))))","v":0}]
[null,null,null,null,null,"Dedução ascendentes",{"$f":"IF(C99=2,IF(C94=0,0,IF(C94=1,G161/2,(G160*C94)/2)),IF(C94=0,0,IF(C94=1,G161,(G160*C94))))","v":0},{"$f":"IF(C99=2,IF(C94=0,0,IF(C94=1,H161/2,(H160*C94)/2)),IF(C94=0,0,IF(C94=1,H161,(H160*C94))))","v":0}]
[]
[]
[null,null,null,null,null,"Rendimento colectável",null,"Limite Dedução Rendas 2024"]
[null,null,null,null,null,"(Euros)"]
[null,null,null,null,null,"De","Até"]
[null,null,null,null,null,0,7479,800]
[null,null,null,null,null,{"$f":"G171","v":7479},30000,{"$f":"502+((800-502)*((30000-G24)/(30000-F172)))","v":898.96283468762488}]
[]
[]
[null,null,null,null,null,"Rendimento colectável",null,"Limite Dedução Juros 2024"]
[null,null,null,null,null,"(Euros)"]
[null,null,null,null,null,"De","Até"]
[null,null,null,null,null,0,7479,450]
[null,null,null,null,null,{"$f":"G178","v":7479},30000,{"$f":"296+((450-296)*((30000-G24)/(30000-F179)))","v":501.14186759024909}]
[]
[]
[null,null,null,null,null,"Rendimento colectável",null,"Limite Dedução Rendas 2025"]
[null,null,null,null,null,"(Euros)"]
[null,null,null,null,null,"De","Até"]
[null,null,null,null,null,0,7479,800]
[null,null,null,null,null,{"$f":"G185","v":7479},30000,{"$f":"502+((800-502)*((30000-G38)/(30000-F186)))","v":898.96283468762488}]
[]
[]
[null,null,null,null,null,"Rendimento colectável",null,"Limite Dedução Juros 2025"]
[null,null,null,null,null,"(Euros)"]
[null,null,null,null,null,"De","Até"]
[null,null,null,null,null,0,7479,450]
[null,null,null,null,null,{"$f":"G192","v":7479},30000,{"$f":"296+((450-296)*((30000-G38)/(30000-F193)))","v":501.14186759024909}]